Cogmind - Beta 16 @@@ ROGUE MODE // 2026.02.07 @ 23:04:19 Player: Lyra Result: Destroyed by D-53 Grenadier with Mini Grenade Launcher Performance ------------- Evolutions (1) 500 Regions Visited (3) 600 Robots Destroyed (27) 135 Value Destroyed (821) 821 Prototype IDs (1) 20 Alien Tech Used (0) 0 Bonus (200) 200 TOTAL SCORE: 2276 Bonus ------- Pacifist 200 Cogmind --------- Core Integrity 0/400 Matter 224/300 Energy 91/100 System Corruption 2% Temperature Cool (42) Movement Core (450) Ox8 Location -9/Mines Parts ------- > --- POWER (2) -------- (None) > --- PROPULSION (2) --- (None) > --- UTILITY (2) ------ Large Storage Unit > --- WEAPON (3) ------- Beam Rifle Minigun > --- INVENTORY (15) --- Ion Engine Improved Ion Engine Light Treads Light Treads Signal Interpreter Salvage Targeting Computer Light Armor Plating Tractor Beam Medium Laser Beam Rifle Light EM Pulse Cannon Light EM Pulse Cannon Minigun Peak State ------------ > --- POWER ------------ Ion Engine Light Ion Engine > --- PROPULSION ------- Light Treads Armored Wheel > --- UTILITY ---------- Large Storage Unit Light Armor Plating > --- WEAPON ----------- EM Shotgun Heavy Assault Rifle Minigun > --- INVENTORY -------- Ion Engine Improved Ion Engine Light Treads Light Treads Signal Interpreter Salvage Targeting Computer Light Armor Plating Tractor Beam Medium Laser Beam Rifle Beam Rifle Light EM Pulse Cannon Light EM Pulse Cannon Minigun Mining Claw [Rating: 16] Favorites ----------- Power Ion Engine Engine Ion Engine Propulsion Wheel Treads Light Treads Wheel Wheel Utility Large Storage Unit Storage Large Storage Unit Protection Hardened Light Armor Plating Weapon Heavy Assault Rifle Energy Gun Beam Rifle Energy Cannon Light EM Pulse Cannon Ballistic Gun Heavy Assault Rifle Launcher EMP Blaster Slashing Weapon Mining Claw Build | -11 -10 -9 -9 ------- Run | Yrd Mat Mat Min Slots Evolved 2 | . . 2 . Power 1 | . . 1 . Propulsion . | . . . . Utility . | . . . . Weapon 1 | . . 1 . Parts Attached 31 | 7 1 20 3 Power 5 | 1 . 3 1 Engine 5 | 1 . 3 1 Core . | . . . . Reactor . | . . . . Propulsion 7 | 4 1 2 . Treads 3 | 2 . 1 . Leg . | . . . . Wheel 4 | 2 1 1 . Hover . | . . . . Flight . | . . . . Utility 5 | . . 5 . Device . | . . . . Storage 1 | . . 1 . Processor . | . . . . Hackware . | . . . . Protection 4 | . . 4 . Artifact . | . . . . Weapon 14 | 2 . 10 2 Energy Gun 6 | . . 5 1 Energy Cannon 1 | . . 1 . Ballistic Gun 5 | 2 . 3 . Ballistic Cannon . | . . . . Launcher 1 | . . 1 . Special Weapon . | . . . . Impact Weapon . | . . . . Slashing Weapon 1 | . . . 1 Piercing Weapon . | . . . . Special Melee Weapon . | . . . . Unidentified Prototypes 1 | . . 1 . Parts Lost 18 | . . 11 7 Power 5 | . . 3 2 Propulsion 4 | . . 2 2 Utility 2 | . . 1 1 Weapon 7 | . . 5 2 Highest Loss Streak 7 | . . 4 7 To Critical Strikes . | . . . . Average Backups 9 | 1 4 10 14 Power 2 | . 1 2 2 Propulsion 2 | . 2 2 2 Utility 2 | . . 2 4 Weapon 3 | . 1 3 6 Tool/Special . | . . . . Unused Backups 7 | . . 1 6 Power 2 | . . . 2 Propulsion 1 | . . 1 . Utility 3 | . . . 3 Weapon 1 | . . . 1 Tool/Special . | . . . . Average Slot Usage (%) 80 | . 71 81 91 Engine 17 | . 14 17 17 Treads 4 | . . 4 9 Wheel 13 | . 28 11 11 Storage 8 | . . 10 11 Protection 4 | . . 5 9 Energy Gun 10 | . . 11 11 Ballistic Gun 17 | . 28 15 20 Launcher 3 | . . 4 . Peak Build Rating 16 | 5 5 15 16 Average Rating 10 | 3 5 11 14 On Entrance 6 | . 5 5 15 Avg Prop Armor Cover (%) 7 | . . 7 7 Naked Turns . | . . . . Heaviest Build 47 | 7 7 47 40 Greatest Support 40 | 40 26 40 12 Greatest Overweight (x) 4 | . . 4 3 Average Overweight (x) 1 | . . 2 2 Largest Inventory Capacity 15 | 5 5 15 15 Average Capacity 12 | 5 5 14 15 Most Carried 15 | 4 5 15 15 Average Carried 9 | 1 4 10 14 Final Capacity 15 | 5 5 15 15 Final Carried 15 | 4 5 15 13 Class Distribution -------------------- 39% | Tank 31% | Gunner 24% | Mutant 4% | Scavenger-Tank Dominant Class ---------------- Mutant | -10/Materials Tank | -9/Materials Scavenger-Tank | -9/Mines Resources | -11 -10 -9 -9 ----------- Run | Yrd Mat Mat Min Matter Collected 686 | 44 237 373 32 Remotely . | . . . . Salvage Created 1113 | . . 1039 74 Parts 70 | . . 60 10 Haulers Intercepted . | . . . . Recyclers Shooed . | . . . . Parts Field Recycled . | . . . . Retrieved Matter . | . . . . Parts Self-Destructed . | . . . . Prevented . | . . . . Parts Restored . | . . . . Kills | -11 -10 -9 -9 ------- Run | Yrd Mat Mat Min Combat Hostiles Destroyed 23 | . . 19 4 Guns 18 | . . 14 4 Cannons 1 | . . 1 . AOE 4 | . . 4 . Classes Destroyed 9 | . . 8 1 Worker 1 | . . 1 . Builder 1 | . . 1 . Recycler 1 | . . 1 . Operator 1 | . . 1 . Swarmer 6 | . . 3 3 Grunt 7 | . . 7 . Brawler 1 | . . 1 . Sentry 8 | . . 8 . Demolisher 1 | . . . 1 Best Kill Streak 5 | . . 5 3 Combat Bots Only 5 | . . 5 3 Max Kills in Single Turn 3 | . . 3 1 Gunslinging . | . . . . Exploded 2 | . . 2 . Melee . | . . . . Uniques/NPCs Destroyed . | . . . . Combat | -11 -10 -9 -9 -------- Run | Yrd Mat Mat Min Hostile Shots Fired 157 | . 12 104 41 Missed 42 | . 4 29 9 Hits 115 | . 8 75 32 Projectile 115 | . 8 75 32 AOE 19 | . . . 19 Critical Strikes 2 | . . 1 1 Damage Taken 2112 | . 89 1108 915 Core 438 | . 34 190 214 Absorbed by Shields . | . . . . Core Remaining (%) 93 | 100 86 . . Volleys Fired 78 | . 8 58 12 Largest 3 | . 2 3 3 Hottest 129 | . 40 129 93 Shots Fired 203 | . 16 156 31 Gun 189 | . 16 142 31 Cannon 1 | . . 1 . Launcher 13 | . . 13 . Special . | . . . . Kinetic 122 | . 16 86 20 Thermal 26 | . . 23 3 Explosive . | . . . . Electromagnetic 55 | . . 47 8 Robot Hit Streak 7 | . 1 7 4 Robot Miss Streak 8 | . 5 3 8 Penetration Max . | . . . . Secondary Targets 6 | . . 4 2 Max Gunslinging Chain 1 | . . 1 1 Shots Hit Robots 105 | . 4 87 14 Core Hits 50 | . 1 43 6 Critical Kills . | . . . . Critical Parts Destroyed . | . . . . Critical Strikes 2 | . . 1 1 Burn 1 | . . . 1 Corrupt 1 | . . 1 . Melee Attacks . | . . . . Impact . | . . . . Slashing . | . . . . Piercing . | . . . . Sneak Attacks . | . . . . Combat Hostiles . | . . . . Follow-up Attacks . | . . . . Damage Inflicted 1662 | . 27 1434 201 Guns 1259 | . 27 1031 201 Cannons 18 | . . 18 . Explosions 385 | . . 385 . Melee . | . . . . Ramming . | . . . . Kinetic 701 | . 27 549 125 Thermal 213 | . . 184 29 Explosive . | . . . . Electromagnetic 748 | . . 701 47 Impact . | . . . . Slashing . | . . . . Piercing . | . . . . Highest Corruption 2 | . . 2 2 Average Corruption 1 | . . 1 2 Corruption Purged . | . . . . Corruption Blocked . | . . . . Effects 8 | . . 7 1 Message Errors 3 | . . 3 . Heat Flow Errors 1 | . . 1 . Parts Rejected 2 | . . 1 1 Data Loss (minor) 1 | . . 1 . Misfires 1 | . . 1 . Overload Shots . | . . . . Overflow Damage . | . . . . Projectiles . | . . . . Explosions . | . . . . Melee . | . . . . Knockbacks . | . . . . Impact . | . . . . Kinetic . | . . . . Secondary . | . . . . Self-Inflicted Damage 101 | . . 101 . Shots 10 | . . 10 . Rammed . | . . . . Targets Rammed . | . . . . Kicked . | . . . . Crushed . | . . . . Highest Temperature 346 | . . 346 244 Average Temperature 98 | . . 97 102 Received Heat Transfer 393 | . 48 345 . Effects 1 | . . 1 . Shutdowns 1 | . . 1 . Siege Activations . | . . . . Martial Activations . | . . . . Shielding Activations . | . . . . Robots Disrupted 1 | . . 1 . Combat Hostiles 1 | . . 1 . Robots Corrupted . | . . . . Combat Hostiles . | . . . . Parts Fried 1 | . . 1 . Impact Corruptions . | . . . . Robots Melted . | . . . . Combat Hostiles . | . . . . Parts Melted 2 | . . 2 . Heat Transferred 568 | . . 420 148 Parts Sabotaged . | . . . . Parts Stolen . | . . . . Parts Stripped . | . . . . Power Chain Reactions 1 | . . 1 . Alert | -11 -10 -9 -9 ------- Run | Yrd Mat Mat Min Maximum Alert Level . | . . . . Low Security (%) 100 | 100 100 100 100 Level 1 . | . . . . Level 2 . | . . . . Level 3 . | . . . . Level 4 . | . . . . Level 5 . | . . . . High Security . | . . . . Max Security . | . . . . Peak Influence 126 | . . 126 94 Initial 34 | . . . 34 Average 57 | . . 70 67 Influence Increases 664 | . . 574 90 Destroy 0b10 Robot/C 460 | . . 380 80 Destroy 0b10 Robot/NC 20 | . . 20 . Destroy Leader 130 | . . 120 10 Successful Hack 7 | . . 7 . Disable Machine 30 | . . 30 . Destroy Structure 2 | . . 2 . Lose Combat Pursuer 15 | . . 15 . Influence Decreases 650 | . . 485 165 Entered New Map 55 | . . . 55 Time Decay 415 | . . 375 40 Lost Part 180 | . . 110 70 Squads Dispatched 1 | . 1 . . Investigation . | . . . . Extermination . | . . . . Reinforcement 1 | . 1 . . Assault . | . . . . Garrison . | . . . . Intercept . | . . . . Searches Triggered . | . . . . Construction Impeded . | . . . . Haulers Reinforced . | . . . . Active Scanning Responses . | . . . . Cargo Convoy Interrupts . | . . . . Stealth | -11 -10 -9 -9 --------- Run | Yrd Mat Mat Min Distress Signals 1 | . . 1 . Communications Jammed . | . . . . Distress Signals . | . . . . Times Spotted 49 | . 9 30 10 Peak Tracking Total 10 | . 4 6 10 Tactical Retreats 1 | . . 1 . Traps | -11 -10 -9 -9 ------- Run | Yrd Mat Mat Min Traps Triggered 3 | . . 3 . Indirectly 1 | . . 1 . Trap Hack Attempts . | . . . . Triggered . | . . . . Disarmed . | . . . . Reprogrammed . | . . . . Reused . | . . . . Traps Extracted . | . . . . Installed . | . . . . Triggered . | . . . . Machines | -11 -10 -9 -9 ---------- Run | Yrd Mat Mat Min Machines Disabled 2 | . . 2 . Max in Single Turn 1 | . . 1 . Machines Repaired . | . . . . Machines Dismantled . | . . . . Machines Sabotaged . | . . . . Overloaded Fab Kills . | . . . . Hacking | -11 -10 -9 -9 --------- Run | Yrd Mat Mat Min Machines Accessed 5 | . . 5 . Terminals 4 | . . 4 . Fabricators . | . . . . Repair Stations 1 | . . 1 . Recycling Units . | . . . . Scanalyzers . | . . . . Garrison Access . | . . . . Total Hacks 13 | . . 13 . Successful 6 | . . 6 . Failed 6 | . . 6 . Catastrophic . | . . . . Database Lockouts 1 | . . 1 . Manual . | . . . . Terminals 12 | . . 12 . Fabricators . | . . . . Repair Stations 1 | . . 1 . Recycling Units . | . . . . Scanalyzers . | . . . . Garrison Access . | . . . . Terminal Hacks 6 | . . 6 . Record 5 | . . 5 . Alert Level 1 | . . 1 . Fabricator Hacks . | . . . . Repair Station Hacks . | . . . . Recycling Unit Hacks . | . . . . Scanalyzer . | . . . . Garrison Access Hacks . | . . . . Unauthorized Hacks . | . . . . Terminals . | . . . . Fabricators . | . . . . Repair Stations . | . . . . Recycling Units . | . . . . Scanalyzers . | . . . . Garrison Access . | . . . . Data Cores Recovered . | . . . . Used . | . . . . Hacking Detections 3 | . . 3 . Full Trace Events . | . . . . Feedback Events . | . . . . Feedback Blocked . | . . . . Robot Schematics Acquired . | . . . . Robots Built . | . . . . Authchips . | . . . . Time . | . . . . Total Robot Build Rating . | . . . . Part Schematics Acquired . | . . . . Parts Built . | . . . . Authchips . | . . . . Time . | . . . . Total Part Build Rating . | . . . . Part Studies Acquired . | . . . . Parts Repaired . | . . . . Time . | . . . . Parts Recycled . | . . . . Recycled Matter . | . . . . Retrieved Matter . | . . . . Retrieved Components . | . . . . Parts Scanalyzed . | . . . . Part Schematics Acquired . | . . . . Parts Damaged . | . . . . Bothacking | -11 -10 -9 -9 ------------ Run | Yrd Mat Mat Min Used RIF Installer . | . . . . Robots Hacked . | . . . . Non-combat . | . . . . Combat . | . . . . Robot Hacks Applied . | . . . . Relay Couplers Released . | . . . . Fabnet Peak Effective % . | . . . . Robots Rewired . | . . . . Allies Hacked . | . . . . Hacks Repelled . | . . . . Allies | -11 -10 -9 -9 -------- Run | Yrd Mat Mat Min Total Allies . | . . . . Largest Group . | . . . . Highest-Rated Group . | . . . . Highest-Rated Ally . | . . . . Total Orders . | . . . . Ally Attacks . | . . . . Total Damage . | . . . . Kills . | . . . . Allies Corrupted . | . . . . Allies Melted . | . . . . Intel | -11 -10 -9 -9 ------- Run | Yrd Mat Mat Min Active Infowar (turns) . | . . . . Robot Analysis Total . | . . . . Derelict Logs Recovered . | . . . . Drone Launches . | . . . . Drone Recoveries . | . . . . Exploration | -11 -10 -9 -9 ------------- Run | Yrd Mat Mat Min Turns Passed 1286 | 67 170 951 98 Spaces Moved 802 | 48 172 536 46 Core 6 | 6 . . . Treads 89 | 17 . 72 . Legs . | . . . . Wheels 707 | 25 172 464 46 Hover . | . . . . Flight . | . . . . Fastest Speed 50 | 50 80 90 120 Average Speed 119 | 104 85 130 133 Slowest Speed 160 | 160 90 160 135 Overloaded Moves . | . . . . Propulsion Burnouts . | . . . . Robots Hopped . | . . . . Potential Cave-ins . | . . . . Cave-ins Triggered . | . . . . Exploration Rate (%) 26 | 3 31 52 18 Regions Visited 3 Branch Regions 1 Pre-discovered Areas . | . . . . Known Exits Taken . | . . . . Unknown Exits Taken 3 | 1 1 1 . Scrap Searched . | . . . . Spaces Dug . | . . . . Terrain Destroyed . | . . . . Melee . | . . . . Projectile . | . . . . AOE . | . . . . Terrain Rammed . | . . . . Walls Destroyed . | . . . . Machines Disabled . | . . . . Actions | -11 -10 -9 -9 --------- Run | Yrd Mat Mat Min Total 978 | 63 181 673 61 Wait 23 | . . 23 . Move 799 | 47 171 535 46 Hop . | . . . . Pick Up 40 | 9 1 30 . Fast Attach 2 | . . 1 1 Attach 25 | 5 . 18 2 Detach 1 | . . 1 . Swap 7 | 2 1 4 . Drop 3 | . . 3 . Fire 78 | . 8 58 12 Melee . | . . . . Ram . | . . . . Kick . | . . . . Crush . | . . . . Escape Stasis . | . . . . Rewire . | . . . . Trap . | . . . . Miscellaneous . | . . . . Route ------- -11/Scrapyard -10/Materials -9/Materials -9/Mines History --------- Turn | Location | Event 3 | -11/Scrapyard | Discovered new exit (range 15) 68 | -11/Scrapyard | Entered Materials 229 | -10/Materials | Discovered new exit (range 10) 238 | -10/Materials | Entered another Materials area 238 | -9/Materials | Evolved 2 slots: Power x1, Weapon x1 245 | -9/Materials | Central database locked down 882 | -9/Materials | Build established: Tank 959 | -9/Materials | Lost 4 parts (2p1n1w) 1117 | -9/Materials | Discovered new exit (range 7) 1189 | -9/Materials | Entered Mines 1190 | -9/Mines | Assembled infested the area 1191 | -9/Mines | Core integrity fell below 50% 1286 | -9/Mines | Core integrity fell below 20% 1287 | -9/Mines | Destroyed by D-53 Grenadier with Mini Grenade Launcher Last Messages --------------- C-45 Heavy ARC bursts open, deploying its payload. D-53 Grenadier unfolds itself. as-59351 destroyed. as-72257 destroyed. as-00595 destroyed. Lgt. Armor Plating destroyed. The unstable cave ceiling collapses. EM Shotgun destroyed. Ion Engine destroyed. The unstable cave ceiling collapses. Hvy. Assault Rifle destroyed. Lgt. Treads destroyed. Arm. Wheel destroyed. D-53 Grenadier suffers critical hit (Burn). D-53 Grenadier destroyed. Switching to secondary target: D-53 Grenadier. Lgt. Ion Engine destroyed. System corrupted: Mining Claw rejected. The unstable cave ceiling collapses. Map ----- +----------------------------------------------------+ | | | | | ???????????????????????????????????????????? | | ???????????????????????????????????????????? | | ???????????????????????????????????????????? | | ???????????????????????????????????????????? | | ???????????????????????????????????????????? | | ???????????????????????????????????????????? | | ???????????????????????????????????????????? | | ???????????????????????????????????????????? | | ??????????????????????????? ???????????????? | | ??????????????????????????? ???????????????? | | ??????????????????????????? ???????????????? | | ??????????????????????????? ???????????????? | | ???????????????#?????????? ???????????????? | | ?????????????? ????????? ???????????????? | | ??????????????? ###?????? ???????????????? | | ???????????????? ?????? #???????????????? | | ????????????????? ??????$#???????????????? | | ?????????????????# ?????? #???????????????? | | ?????????????????# #?###? #???????????????? | | ????????????????## ## # ###?????????????? | | ????????????????# # ##????????????? | | ???????????????## # #????????????? | | ???????????????# #????????????? | | ??????????????## @ #????????????? | | ??????????????# ##????????????? | | ??????????????# #????????????? | | ??????????????# # ##????????????? | | ??????????????## # ##?????????????? | | ???????????????## # ##??????????????? | | ????????????????## =######????????????? | | ?????????????????# d% #????????????? | | ?????????????????# =# ## #?########???? | | ?????????????????# ## ## ## #???? | | ?????????????????# # # ## #???? | | ?????????????????## #### #???? | | ??????????????????#####?# ##???? | | ????????????????????????# ## ##????? | | ????????????????????????# ##?#####?????? | | ????????????????????????## #????????????? | | ?????????????????????????## #########????? | | ??????????????????????????## ## #????? | | ??????????????????????????# ## #????? | | ??????????????????????????# ## #????? | | ????????????????????????# # = #????? | | ?????????????????"" ## %= #????? | | ?????????????????"" "% = [ #????? | | ?????????????????"" ### % [ #????? | | ?????????????????? ???# ## #????? | +----------------------------------------------------+ Best States ------------- Heat Dissipation 28 Energy Generation 17 Energy Capacity 415 Matter Stores 300 Matter Capacity 300 Sight Range 16 Terrain Scan Density 10 Armor Coverage 150 Evasion (%) 44 Recoil Reduction 2 Item Schematics ----------------- None Robot Schematics ------------------ None Fabricated ------------ Nothing Repaired ---------- Nothing Studied --------- None Alien Tech Used ----------------- None Achievements -------------- Organ Harvest Challenges ------------ None Game ------ Seed CentriumSniperMace Manual? 0 Play Time 00:21:13 Cumulative 2.3 hours Start 2026.02.07 @ 22:21:24 End 2026.02.07 @ 23:04:19 Sessions 1 Manual Loads 0 Difficulty Rogue Special Mode None Game No. 9 Rogue 9 Adventurer 0 Explorer 0 Win Type - Total 0 Types 0/0/0/0/0/0/0/0/0/0 Lore% 1 Gallery% 6 Achievement% 3 Wizard Run 0 Options --------- Layout 1 ASCII 0 Keyboard 0 Movement Numpad Keybinds 0 Fullscreen 2 Font 48/Terminus Map View 50x35 Zoom Use 0% Tactical HUD 0 Map Filters NONE Filters NONE Steam 1 RUN: bf551aa7-df1e-4fa9-9ef8-4ee940739b14